Cogmind - Beta 17 @@@ ROGUE MODE // 2026.07.09 @ 22:33:57 Player: Kretinosaurus Result: Destroyed by Y-45 Defender with Heavy Assault Rifle Performance ------------- Evolutions (2) 1000 Regions Visited (3) 600 Robots Destroyed (56) 280 Value Destroyed (1570) 1570 Prototype IDs (2) 40 Alien Tech Used (0) 0 Bonus (47) 47 TOTAL SCORE: 3537 Bonus ------- High Alert Combat Kills 47 Cogmind --------- Core Integrity 0/550 Matter 300/300 Energy 99/100 System Corruption 15% Temperature Cool (9) Movement Core (50) Location -8/Materials Parts ------- > --- POWER (1) -------- (None) > --- PROPULSION (4) --- (None) > --- UTILITY (4) ------ (None) > --- WEAPON (2) ------- (None) > --- INVENTORY (5) ---- Aluminum Leg Aluminum Leg Large Storage Unit Large Storage Unit Weight Redist. System Peak State ------------ > --- POWER ------------ Improved Ion Engine > --- PROPULSION ------- Aluminum Leg Aluminum Leg Aluminum Leg Aluminum Leg > --- UTILITY ---------- Large Storage Unit Advanced Targeting Computer Light Armor Plating Hardlight Generator > --- WEAPON ----------- Beam Cannon Mini Grenade Launcher > --- INVENTORY -------- Ion Engine Aluminum Leg Aluminum Leg Aluminum Leg Heat Sink Large Storage Unit Weight Redist. System ECM Suite Light Armor Plating Beam Cannon Beam Cannon Beam Cannon Heavy Assault Rifle [Rating: 18] Favorites ----------- Power Improved Ion Engine Engine Improved Ion Engine Propulsion Aluminum Leg Leg Aluminum Leg Flight Unit Flight Unit Utility Large Storage Unit Device Weight Redist. System Storage Large Storage Unit Processor Advanced Targeting Computer Protection Light Armor Plating Weapon Beam Cannon Energy Gun Small Laser Energy Cannon Beam Cannon Ballistic Gun Assault Rifle Launcher Mini Grenade Launcher Special Melee Weapon Datajack Build | -11 -10 -9 -8 ------- Run | Yrd Mat Mat Mat Slots Evolved 4 | . . 2 2 Power . | . . . . Propulsion 2 | . . 2 . Utility 2 | . . . 2 Weapon . | . . . . Parts Attached 60 | 7 4 27 22 Power 8 | 1 1 3 3 Engine 8 | 1 1 3 3 Core . | . . . . Reactor . | . . . . Propulsion 20 | 2 . 11 7 Treads . | . . . . Leg 12 | 2 . 3 7 Wheel . | . . . . Hover . | . . . . Flight 8 | . . 8 . Utility 17 | 2 1 7 7 Device 7 | 1 1 2 3 Storage 6 | 1 . 4 1 Processor 1 | . . 1 . Hackware . | . . . . Protection 3 | . . . 3 Artifact . | . . . . Weapon 15 | 2 2 6 5 Energy Gun 2 | 1 . 1 . Energy Cannon 5 | . . 2 3 Ballistic Gun 5 | 1 1 1 2 Ballistic Cannon . | . . . . Launcher 2 | . 1 1 . Special Weapon . | . . . . Impact Weapon . | . . . . Slashing Weapon . | . . . . Piercing Weapon . | . . . . Special Melee Weapon 1 | . . 1 . Unidentified Prototypes . | . . . . Parts Lost 35 | . 1 11 23 Power 7 | . . 3 4 Propulsion 13 | . . 7 6 Utility 6 | . . . 6 Weapon 9 | . 1 1 7 Highest Loss Streak 14 | . 1 7 14 To Critical Strikes 1 | . 1 . . Average Backups 9 | 3 7 9 11 Power 1 | . 1 . 1 Propulsion 3 | 1 3 3 2 Utility 3 | . 1 4 4 Weapon 1 | . 1 . 3 Tool/Special . | . . . . Unused Backups 7 | . 3 3 1 Power . | . . . . Propulsion 4 | . 2 2 . Utility 3 | . 1 1 1 Weapon . | . . . . Tool/Special . | . . . . Average Slot Usage (%) 83 | . 94 92 69 Engine 9 | . 14 10 6 Leg 27 | . 28 27 26 Flight 4 | . . 12 . Device 7 | . 14 8 3 Storage 10 | . 14 11 8 Processor 2 | . . 2 3 Protection 2 | . . . 5 Energy Gun 1 | . 4 1 . Energy Cannon 9 | . . 12 10 Ballistic Gun 4 | . 14 2 1 Launcher 2 | . 4 . 3 Peak Build Rating 18 | 9 9 14 18 Average Rating 10 | 6 7 11 11 On Entrance 7 | . 9 6 14 Avg Prop Armor Cover (%) . | . . . . Naked Turns 54 | . . . 54 Heaviest Build 39 | 11 14 33 39 Greatest Support 46 | 20 20 46 45 Greatest Overweight (x) 9 | . . 3 9 Average Overweight (x) . | . . . . Largest Inventory Capacity 15 | 8 8 15 15 Average Capacity 11 | 7 8 11 14 Most Carried 15 | 5 8 15 15 Average Carried 9 | 3 7 9 11 Final Capacity 15 | 8 8 15 5 Final Carried 15 | 5 8 15 5 Class Distribution -------------------- 62% | Mutant 26% | Scavenger-Mutant 11% | Scavenger-Sprinter Dominant Class ---------------- Mutant | -10/Materials Mutant | -9/Materials Scavenger-Mutant | -8/Materials Resources | -11 -10 -9 -8 ----------- Run | Yrd Mat Mat Mat Matter Collected 1253 | 283 52 401 517 Remotely . | . . . . Salvage Created 1618 | 131 76 605 806 Parts 92 | 8 9 33 42 Haulers Intercepted . | . . . . Recyclers Shooed 1 | . . 1 . Parts Field Recycled . | . . . . Retrieved Matter . | . . . . Parts Self-Destructed . | . . . . Prevented . | . . . . Parts Restored . | . . . . Kills | -11 -10 -9 -8 ------- Run | Yrd Mat Mat Mat Combat Hostiles Destroyed 37 | . 5 11 21 Guns 12 | . 5 6 1 Cannons 8 | . . 4 4 AOE 17 | . . 1 16 Classes Destroyed 10 | 2 1 4 3 Worker 6 | . . 1 5 Builder 2 | . . . 2 Tunneler 2 | 2 . . . Recycler 3 | 1 . 1 1 Mechanic 1 | . . . 1 Watcher 5 | . . 4 1 Swarmer 7 | . 5 2 . Grunt 23 | . . 6 17 Sentry 6 | . . 3 3 Hunter 1 | . . . 1 Best Kill Streak 14 | 1 2 6 14 Combat Bots Only 11 | . 2 3 11 Max Kills in Single Turn 3 | 1 1 2 3 Gunslinging . | . . . . Exploded 2 | . . 1 2 Melee . | . . . . Uniques/NPCs Destroyed . | . . . . Combat | -11 -10 -9 -8 -------- Run | Yrd Mat Mat Mat Hostile Shots Fired 339 | . 25 108 206 Missed 104 | . 8 35 61 Hits 235 | . 17 73 145 Projectile 235 | . 17 73 145 Critical Strikes 9 | . 1 2 6 Damage Taken 3861 | . 143 738 2980 Core 702 | . 8 142 552 Absorbed by Shields 39 | . . . 39 Core Remaining (%) 86 | 100 96 64 . Volleys Fired 154 | 14 20 64 56 Largest 2 | 2 2 2 2 Hottest 120 | 60 60 120 120 Shots Fired 210 | 27 25 82 76 Gun 114 | 27 25 44 18 Cannon 69 | . . 34 35 Launcher 27 | . . 4 23 Special . | . . . . Kinetic 84 | 13 20 33 18 Thermal 99 | 14 5 45 35 Explosive 27 | . . 4 23 Electromagnetic . | . . . . Robot Hit Streak 10 | 4 4 10 10 Robot Miss Streak 5 | 2 4 5 3 Penetration Max . | . . . . Secondary Targets 1 | . 1 . . Max Gunslinging Chain 1 | . 1 . . Shots Hit Robots 133 | 15 12 53 53 Core Hits 94 | 6 6 22 60 Critical Kills . | . . . . Critical Parts Destroyed 2 | . . . 2 Critical Strikes 2 | . . . 2 Destroy 2 | . . . 2 Melee Attacks 3 | . . 3 . Impact . | . . . . Slashing . | . . . . Piercing . | . . . . Sneak Attacks . | . . . . Combat Hostiles . | . . . . Follow-up Attacks . | . . . . Damage Inflicted 4323 | 157 151 870 3145 Guns 1015 | 157 150 436 272 Cannons 752 | . . 333 419 Explosions 2523 | . . 97 2426 Melee . | . . . . Ramming 33 | . 1 4 28 Kinetic 793 | 57 128 336 272 Thermal 974 | 100 22 433 419 Explosive 2523 | . . 97 2426 Electromagnetic . | . . . . Impact . | . . . . Slashing . | . . . . Piercing . | . . . . Highest Corruption 15 | . . 1 15 Average Corruption 13 | . . 1 15 Corruption Purged . | . . . . Corruption Blocked . | . . . . Effects 25 | . . 1 24 Message Errors 4 | . . . 4 Matter Fused 4 | . . . 4 Heat Flow Errors 3 | . . . 3 Energy Discharges 1 | . . . 1 Parts Rejected 3 | . . . 3 Parts Fused 2 | . . . 2 Data Loss (minor) 1 | . . . 1 Data Loss (major) 1 | . . . 1 Misfires 1 | . . . 1 Alerts 1 | . . 1 . Misdirections 3 | . . . 3 Weapon Failures 1 | . . . 1 Overload Shots . | . . . . Overflow Damage 26 | . . . 26 Projectiles . | . . . . Explosions 26 | . . . 26 Melee . | . . . . Knockbacks . | . . . . Impact . | . . . . Kinetic . | . . . . Secondary . | . . . . Self-Inflicted Damage 96 | . . . 96 Shots 3 | . . . 3 Rammed 2 | . . . 2 Targets Rammed 8 | . 1 2 5 Kicked 6 | . 1 2 3 Crushed . | . . . . Highest Temperature 309 | 40 40 228 309 Average Temperature 50 | 20 26 66 46 Received Heat Transfer 1132 | . . 228 904 Siege Activations . | . . . . Martial Activations . | . . . . Shielding Activations . | . . . . Robots Disrupted . | . . . . Combat Hostiles . | . . . . Robots Corrupted . | . . . . Combat Hostiles . | . . . . Parts Fried . | . . . . Impact Corruptions . | . . . . Robots Melted . | . . . . Combat Hostiles . | . . . . Parts Melted 5 | . . 5 . Heat Transferred 2091 | 225 50 928 888 Parts Sabotaged . | . . . . Parts Stolen . | . . . . Parts Stripped . | . . . . Power Chain Reactions . | . . . . Alert | -11 -10 -9 -8 ------- Run | Yrd Mat Mat Mat Maximum Alert Level 2 | . . . 2 Low Security (%) 69 | 100 100 100 23 Level 1 22 | . . . 57 Level 2 7 | . . . 19 Level 3 . | . . . . Level 4 . | . . . . Level 5 . | . . . . High Security . | . . . . Max Security . | . . . . Peak Influence 441 | 5 60 113 441 Initial 40 | . . 8 40 Average 125 | 1 17 46 269 Influence Increases 1263 | 15 147 403 698 Destroy 0b10 Robot/C 740 | . 100 220 420 Destroy 0b10 Robot/NC 95 | 15 . 30 50 Destroy Leader 170 | . 10 58 102 Successful Hack 24 | . 7 5 12 Disable Machine 15 | . . 15 . Destroy Structure 129 | . . 30 99 Partial Spotted 15 | . . 15 . Lose Combat Pursuer 75 | . 30 30 15 Influence Decreases 1073 | 15 127 326 605 Entered New Map 69 | . . 12 57 Time Decay 709 | 15 117 259 318 Lost Part 295 | . 10 55 230 Squads Dispatched 8 | . 1 1 6 Investigation 3 | . . 1 2 Extermination . | . . . . Reinforcement 5 | . 1 . 4 Assault . | . . . . Garrison . | . . . . Intercept . | . . . . Searches Triggered . | . . . . Construction Impeded 2 | . . . 2 Haulers Reinforced . | . . . . Active Scanning Responses . | . . . . Cargo Convoy Interrupts . | . . . . Stealth | -11 -10 -9 -8 --------- Run | Yrd Mat Mat Mat Distress Signals 6 | . . 3 3 Communications Jammed . | . . . . Distress Signals . | . . . . Times Spotted 64 | . 9 23 32 Peak Tracking Total 7 | . 3 5 7 Tactical Retreats 4 | . 1 2 1 Traps | -11 -10 -9 -8 ------- Run | Yrd Mat Mat Mat Traps Triggered 1 | . . 1 . Indirectly . | . . . . Trap Hack Attempts . | . . . . Triggered . | . . . . Disarmed . | . . . . Reprogrammed . | . . . . Reused . | . . . . Traps Extracted . | . . . . Installed . | . . . . Triggered . | . . . . Machines | -11 -10 -9 -8 ---------- Run | Yrd Mat Mat Mat Machines Disabled 1 | . . 1 . Max in Single Turn 1 | . . 1 . Machines Repaired . | . . . . Machines Dismantled . | . . . . Machines Sabotaged . | . . . . Overloaded Fab Kills . | . . . . Hacking | -11 -10 -9 -8 --------- Run | Yrd Mat Mat Mat Machines Accessed 10 | . 3 1 6 Terminals 7 | . 2 1 4 Fabricators . | . . . . Repair Stations . | . . . . Recycling Units 2 | . 1 . 1 Scanalyzers 1 | . . . 1 Garrison Access . | . . . . Total Hacks 36 | . 14 5 17 Successful 18 | . 6 5 7 Failed 18 | . 8 . 10 Catastrophic 4 | . 2 . 2 Database Lockouts . | . . . . Manual 11 | . 7 1 3 Terminals 24 | . 9 5 10 Fabricators . | . . . . Repair Stations . | . . . . Recycling Units 7 | . 5 . 2 Scanalyzers 5 | . . . 5 Garrison Access . | . . . . Terminal Hacks 10 | . 3 5 2 Record 4 | . 3 . 1 Prototype ID Bank 1 | . . 1 . Terminal Index 1 | . . 1 . Alert Level 1 | . . . 1 Locate Traps 1 | . . 1 . Recall Investigation 1 | . . 1 . Registered Components 1 | . . 1 . Fabricator Hacks . | . . . . Repair Station Hacks . | . . . . Recycling Unit Hacks 4 | . 3 . 1 Report Inventory 3 | . 2 . 1 Retrieve Components 1 | . 1 . . Scanalyzer 4 | . . . 4 Insert Component 2 | . . . 2 Analyze 2 | . . . 2 Garrison Access Hacks . | . . . . Unauthorized Hacks . | . . . . Terminals . | . . . . Fabricators . | . . . . Repair Stations . | . . . . Recycling Units . | . . . . Scanalyzers . | . . . . Garrison Access . | . . . . Data Cores Recovered . | . . . . Used . | . . . . Hacking Detections 9 | . 2 1 6 Full Trace Events 3 | . . 1 2 Feedback Events . | . . . . Feedback Blocked . | . . . . Robot Schematics Acquired . | . . . . Robots Built . | . . . . Authchips . | . . . . Time . | . . . . Total Robot Build Rating . | . . . . Part Schematics Acquired 2 | . . . 2 Parts Built . | . . . . Authchips . | . . . . Time . | . . . . Total Part Build Rating . | . . . . Part Studies Acquired . | . . . . Parts Repaired . | . . . . Time . | . . . . Parts Recycled . | . . . . Recycled Matter . | . . . . Retrieved Matter . | . . . . Retrieved Components 2 | . 2 . . Parts Scanalyzed 2 | . . . 2 Part Schematics Acquired 2 | . . . 2 Parts Damaged . | . . . . Bothacking | -11 -10 -9 -8 ------------ Run | Yrd Mat Mat Mat Used RIF Installer . | . . . . Robots Hacked 1 | . . 1 . Non-combat . | . . . . Combat 1 | . . 1 . Robot Hacks Applied 1 | . . 1 . parse_system 1 | . . 1 . Relay Couplers Released . | . . . . Fabnet Peak Effective % . | . . . . Robots Rewired . | . . . . Allies Hacked . | . . . . Hacks Repelled . | . . . . Allies | -11 -10 -9 -8 -------- Run | Yrd Mat Mat Mat Total Allies . | . . . . Largest Group . | . . . . Highest-Rated Group . | . . . . Highest-Rated Ally . | . . . . Total Orders . | . . . . Ally Attacks . | . . . . Total Damage . | . . . . Kills . | . . . . Allies Corrupted . | . . . . Allies Melted . | . . . . Intel | -11 -10 -9 -8 ------- Run | Yrd Mat Mat Mat Active Infowar (turns) 544 | 52 357 126 9 Terrain 523 | 52 357 114 . ECM 21 | . . 12 9 Robot Analysis Total . | . . . . Derelict Logs Recovered . | . . . . Drone Launches . | . . . . Drone Recoveries . | . . . . Exploration | -11 -10 -9 -8 ------------- Run | Yrd Mat Mat Mat Turns Passed 1799 | 114 357 625 703 Spaces Moved 1157 | 52 245 427 433 Core 122 | 2 . 1 119 Treads . | . . . . Legs 841 | 50 245 232 314 Wheels . | . . . . Hover . | . . . . Flight 194 | . . 194 . Fastest Speed 31 | 50 120 31 50 Average Speed 103 | 117 120 80 114 Slowest Speed 500 | 120 120 200 500 Overloaded Moves . | . . . . Propulsion Burnouts . | . . . . Robots Hopped . | . . . . Potential Cave-ins . | . . . . Cave-ins Triggered 1 | . . . 1 Exploration Rate (%) 28 | 5 43 27 39 Regions Visited 3 Branch Regions . Pre-discovered Areas . | . . . . Known Exits Taken . | . . . . Unknown Exits Taken 3 | 1 1 1 . Scrap Searched . | . . . . Spaces Dug . | . . . . Terrain Destroyed 162 | . . 28 134 Melee . | . . . . Projectile . | . . . . AOE 162 | . . 28 134 Terrain Rammed . | . . . . Walls Destroyed . | . . . . Machines Disabled . | . . . . Actions | -11 -10 -9 -8 --------- Run | Yrd Mat Mat Mat Total 1536 | 77 285 620 554 Wait 87 | . 3 64 20 Move 1154 | 51 244 426 433 Hop . | . . . . Pick Up 36 | 5 7 20 4 Fast Attach 18 | 7 . 7 4 Attach 27 | . . 11 16 Detach 4 | . . 4 . Swap 27 | . 4 12 11 Drop 18 | . 6 7 5 Fire 154 | 14 20 64 56 Melee 3 | . . 3 . Ram 2 | . . . 2 Kick 6 | . 1 2 3 Crush . | . . . . Escape Stasis . | . . . . Rewire . | . . . . Trap . | . . . . Miscellaneous . | . . . . Route ------- -11/Scrapyard -10/Materials (discovered 2 exits: *Mat / [*Min]) -9/Materials -8/Materials History --------- Turn | Location | Event 9 | -11/Scrapyard | Discovered new exit (range 16) 115 | -11/Scrapyard | Entered Materials 199 | -10/Materials | Discovered new exit (range 16) 307 | -10/Materials | Build established: Mutant 356 | -10/Materials | Discovered new exit (range 15) 472 | -10/Materials | Entered another Materials area 472 | -9/Materials | Evolved 2 slots: Propulsion x2 557 | -9/Materials | Lost 7 parts (2p4n1w) 715 | -9/Materials | Lost 3 parts (3n) 1078 | -9/Materials | Discovered new exit (range 15) 1097 | -9/Materials | Entered another Materials area 1097 | -8/Materials | Evolved 2 slots: Utility x2 1255 | -8/Materials | Destroyed 11 combat bots 1383 | -8/Materials | Crushed by falling debris 1383 | -8/Materials | System corruption reached 10% 1414 | -8/Materials | Lost 6 parts (1p1n3u1w) 1647 | -8/Materials | Core integrity fell below 50% 1689 | -8/Materials | Core integrity fell below 20% 1714 | -8/Materials | Lost 14 parts (3p5n1u5w) 1746 | -8/Materials | Released all parts (1) 1800 | -8/Materials | Destroyed by Y-45 Defender with Heavy Assault Rifle Last Messages --------------- 01712_ U-05 Engineer builds a Wall. 01716_ Slug penetrates Wall. 01718_ U-05 Engineer builds a Wall. 01724_ System corrupted: Matter fused (-6). 01724_ Slug penetrates Wall. 01724_ Shield Generator destroyed. 01728_ Slammed into U-05 Engineer. 01741_ System corrupted: Substantial component data lost. 01743_ U-05 Engineer builds a Wall. 01746_ Beam Cannon destroyed. 01746_ Released Lrg. Storage Unit. 01746_ Acquired Lrg. Storage Unit. 01754_ Acquired 20 matter. 01755_ Acquired 7 matter. 01773_ System corrupted: Component data lost. 01790_ System corrupted: Matter fused (-5). 01793_ Acquired 5 matter. 01797_ ALERT: Suspicious intruders detected, dispatching Cutter reinforcements to area. [Achievement: Heavy Suspicion] Map ----- +----------------------------------------------------+ | ??????? """ ???# #??## ##????????????????????# | | ??????? ???# #???# #??????????????# ###### | | ????###########??# #???# ######?????????# | | ????# """T""" #??# #???# ## #?????????+ | | ????# #??# #???# ## " #?????????# | | ????# #??# #???# ## T #?????????### #### | | ###?# #??# #???# ## " #???????????# # | | !#####+########## #???# ## #???????????# # | | !#??# #??## # #???????????# # "" | | #??# ########## #??## ## #???????????# # "" | | #### #????????# #??## u##+############### # "" | | #???????##+##### + | | #######???????# ## #######+############### | | #?????????????# ## ## #?????????????? | | #?????????????# ## # [ #?????????????? | | #?#########???# """ ## # #?????????????? | | # #???# """ ##w #[ #?????????????? | | # ???# """ ## #########?????????????? | | # !! #???# %%## % +?????????????? | | # """ !! #???# ## #########?????????????? | | # """ !! ????# " % ## # ##???????????????? | | # """ ????# ## # ####????????????????? | | # ????# " % ## ###???????????????????? | | # [ ! ??### % ## ##????????????????????? | | ###"#+##"########+### ######???????????????? | | % % @ ????????? | | = % % Y????????? | | k a ????????? | | """ ############## ########## ????????? | | """ #?????????# ?#######????????????????????? | | """ #?????????##????????????????????????????? | | """H #???????????????????????????????????????? | | #???????????????????????????????????????? | | ! #???????????????????????????????????????? | | #???????????????????????????????????????? | | #???????????????????????????????????????? | | "########???????????????????????????????????????? | | #???????????????????????????????????????????????? | | ????????????????????????????????????????????????? | | ????????????????????????????????????????????????? | | ????????????????????????????????????????????????? | | ?????????????????????????????????????????????????? | | ?????????????????????????????????????????????????? | | ?????????????????????????????????????????????????? | | ?????????????????????????????????????????????????? | | ?????????????????????????????????????????????????? | | ?????????????????????????????????????????????????? | | ?????????????????????????????????????????????????? | | ?????????????????????????????????????????????????? | | ?????????????????????????????????????????????????? | +----------------------------------------------------+ Best States ------------- Heat Dissipation 41 Energy Generation 12 Energy Capacity 265 Matter Stores 300 Matter Capacity 300 Sight Range 16 Terrain Scan Range 16 Terrain Scan Density 10 ECM Strength 1 Additional Mass Support 6 Armor Coverage 150 Evasion (%) 63 Targeting Accuracy 8 Item Schematics ----------------- Weight Redist. System | -8/Materials | Scanalyzed Aluminum Leg | -8/Materials | Scanalyzed Robot Schematics ------------------ None Fabricated ------------ Nothing Repaired ---------- Nothing Studied --------- None Alien Tech Used ----------------- None Achievements -------------- Heavy Suspicion Hydra System Compromised Unlikely Earthworm Challenges ------------ None Game ------ Seed DecoyQuantumLauncher Manual? 0 Play Time 00:57:21 Cumulative 3.0 hours Start 2026.07.09 @ 00:11:58 End 2026.07.09 @ 22:33:57 Sessions 5 Manual Loads 0 Difficulty Rogue Special Mode None Game No. 4 Rogue 2 Adventurer 2 Explorer 0 Win Type - Total 0 Types 0/0/0/0/0/0/0/0/0/0 Lore% 1 Gallery% 5 Achievement% 6 Wizard Run 0 Options --------- Layout 0 ASCII 0 Keyboard 1 Movement Numpad Keybinds 0 Fullscreen 1 Font 18/SmallcapsGlow Map View 76x50 Zoom Use 5% Tactical HUD 1 Map Filters NONE Filters NONE Steam 1 RUN: 47819a3c-7198-495e-b2ad-a1b7e8158b72